bitfinex-derivatives/quotes_SOLF0:USTF0_20241105
["timestamp","ask_amount","ask_price","bid_price","bid_amount"]
[1730805046096,7.61643154,162.12,162.04,2.74]
[1730805046289,3.0857,162.11,162.07,10.70273154]
[1730805048185,7.61643154,162.11,162.07,7.61643154]
[1730805048389,3.0859,162.1,162.07,7.61643154]
[1730805048587,7.61643154,162.11,162.04,2.74]
[1730805048795,3.0862,162.09,162.05,10.70323154]
[1730805049495,7.61643154,162.09,162.03,7.61643154]
[1730805049693,3.0865,162.07,162.03,13.44353154]
[1730805049894,7.61643154,162.08,162.03,7.61643154]
[1730805050091,7.61643154,162.08,162.0,1.341]
[1730805050092,7.61643154,162.08,162.02,10.35643154]
[1730805050590,3.0866,162.06,162.02,13.44363154]
[1730805052305,3.0868,162.05,162.02,13.44363154]
[1730805058196,7.61643154,162.08,162.03,7.61643154]
[1730805058398,3.0864,162.08,162.06,7.61643154]
[1730805058798,3.0864,162.08,162.04,2.74]
[1730805059101,3.0864,162.08,162.06,7.61643154]
[1730805062399,3.086,162.1,162.07,3.0863]
[1730805064914,3.086,162.1,162.06,10.70293154]
[1730805065504,10.70223154,162.11,162.07,3.0864]
[1730805065708,7.61643154,162.11,162.07,3.0864]
[1730805066208,7.61643154,162.11,162.07,10.70283154]
[1730805066408,7.61643154,162.13,162.09,3.0859]
[1730805066609,7.61643154,162.15,162.1,7.61643154]
[1730805067007,3.0852,162.14,162.1,7.61643154]
[1730805067205,7.61643154,162.16,162.11,7.61643154]
[1730805067612,4.0234,162.17,162.12,3.0854]
[1730805067917,7.61643154,162.15,162.11,7.61643154]
[1730805068503,7.61643154,162.15,162.1,7.61643154]
[1730805068909,7.61643154,162.12,162.09,1.298]
[1730805069522,10.70203154,162.12,162.09,1.298]
[1730805070421,3.0856,162.12,162.09,8.91443154]
[1730805071110,7.61643154,162.15,162.1,7.61643154]
[1730805071317,11.34658388,162.19,162.14,7.61643154]
[1730805071623,7.61643154,162.19,162.14,7.61643154]
[1730805071917,7.61643154,162.17,162.13,7.61643154]
[1730805073012,10.70113154,162.17,162.13,3.0852]
[1730805073215,7.61643154,162.16,162.11,7.61643154]
[1730805075318,3.0852,162.14,162.11,7.61643154]
[1730805076222,3.0852,162.14,162.11,10.70203154]
[1730805076812,3.0852,162.14,162.1,13.44223154]
[1730805077224,3.0852,162.14,162.1,5.8258]
[1730805077420,7.61643154,162.15,162.1,2.74]
[1730805077621,3.0857,162.11,162.1,2.74]
[1730805079231,7.61643154,162.14,162.1,2.74]
[1730805079434,3.0855,162.12,162.1,2.74]
[1730805080528,7.61643154,162.14,162.1,2.74]
[1730805080733,3.0854,162.13,162.1,5.8258]
[1730805080921,3.0854,162.13,162.1,2.74]
[1730805082333,7.61643154,162.15,162.1,2.74]
[1730805083127,3.0853,162.13,162.1,5.8258]
[1730805084134,3.0853,162.13,162.1,2.74]
[1730805084427,3.0854,162.13,162.09,1.298]
[1730805084633,7.61643154,162.14,162.09,1.298]
[1730805085136,3.0855,162.13,162.09,4.3839]
[1730805086332,3.0855,162.12,162.1,7.61643154]
[1730805088035,1.2821,162.16,162.1,7.61643154]
[1730805088240,8.89853154,162.16,162.11,7.61643154]
[1730805089236,3.0853,162.13,162.11,7.61643154]
[1730805089641,1.2821,162.16,162.11,7.61643154]
[1730805089842,8.89853154,162.16,162.11,7.61643154]
[1730805090246,3.085,162.15,162.11,10.70203154]
[1730805091535,3.085,162.15,162.11,3.0856]
[1730805093139,7.61643154,162.14,162.11,3.0856]
[1730805094139,10.70143154,162.15,162.11,3.0856]
[1730805101451,7.61643154,162.15,162.11,3.0856]
[1730805101648,3.0851,162.14,162.11,3.0856]
[1730805104153,10.70153154,162.14,162.11,3.0856]
[1730805104959,3.0854,162.13,162.09,14.74033154]
[1730805105159,7.61643154,162.14,162.09,14.74033154]
[1730805105557,3.0854,162.13,162.09,14.74033154]
[1730805108063,3.0854,162.13,162.1,3.0858]
[1730805108263,11.32942972,162.19,162.1,7.61643154]
[1730805108457,3.0848,162.16,162.13,7.61643154]
[1730805108661,7.61643154,162.18,162.13,7.61643154]
[1730805109062,3.0848,162.16,162.13,7.61643154]
[1730805109959,3.0848,162.16,162.13,10.70173154]
[1730805112659,169.02242048,162.2,162.15,7.61643154]
[1730805112965,7.61643154,162.19,162.1,2.5999]
[1730805113166,7.61643154,162.19,162.14,7.61643154]
[1730805114462,10.70063154,162.19,162.15,3.0848]
[1730805115169,3.0842,162.19,162.15,3.0848]
[1730805115354,176.63885202,162.2,162.16,3.0846]
[1730805115758,176.63885202,162.2,162.15,7.61643154]
[1730805115759,148.80505,162.2,162.15,7.61643154]
[1730805116072,148.80505,162.2,162.16,3.0846]
[1730805116073,151.88915,162.2,162.16,3.0846]
[1730805116869,3.0842,162.19,162.16,3.0846]
[1730805118269,148.80505,162.2,162.16,7.61643154]
[1730805119263,148.80505,162.2,162.17,3.0845]
[1730805119762,148.80505,162.2,162.13,2.74]
[1730805119763,3.0846,162.17,162.14,3.0849]
[1730805119962,3.0846,162.17,162.14,10.70133154]
[1730805120770,7.61643154,162.19,162.14,7.61643154]
[1730805120960,7.61643154,162.18,162.13,10.70173154]
[1730805121163,7.61643154,162.18,162.13,13.44173154]
[1730805121561,3.0848,162.16,162.13,13.44173154]
[1730805124871,7.61643154,162.18,162.12,40.42720804]
[1730805125063,3.0853,162.13,162.12,40.42720804]
[1730805125460,3.0851,162.14,162.12,43.51260804]
[1730805125775,4.1214,162.19,162.12,43.51260804]
[1730805125776,7.61643154,162.17,162.13,7.61643154]
[1730805126169,3.0848,162.16,162.13,10.70173154]
[1730805127674,3.0848,162.16,162.13,3.0853]
[1730805131572,3.0848,162.16,162.12,43.51260804]
[1730805135984,3.0848,162.16,162.13,3.0853]
[1730805137782,7.61643154,162.16,162.12,40.42720804]
[1730805138086,4.1214,162.19,162.1,4.3712]
[1730805138087,3.0853,162.13,162.1,4.3712]
[1730805138387,3.0853,162.13,162.1,3.0858]
[1730805139072,7.61643154,162.14,162.09,1.298]
[1730805139273,7.61643154,162.13,162.09,1.298]
[1730805139784,3.0858,162.11,162.08,10.70253154]
[1730805140181,3.0858,162.11,162.08,3.0861]
[1730805140489,3.0858,162.11,162.07,7.61643154]
[1730805140884,3.0858,162.11,162.08,3.0861]
[1730805145489,3.0858,162.11,162.08,3.0862]
[1730805148189,7.61643154,162.12,162.1,3.0857]
[1730805148390,7.61643154,162.12,162.07,7.61643154]
[1730805148788,3.0858,162.11,162.07,7.61643154]
[1730805149591,3.0858,162.11,162.08,3.0861]
[1730805153187,3.0858,162.11,162.07,7.61643154]
[1730805153394,3.0858,162.11,162.09,3.086]
[1730805168604,7.61643154,162.14,162.11,3.0855]
[1730805169306,10.70163154,162.14,162.11,3.0855]
[1730805169693,2.76,162.18,162.1,7.61643154]
[1730805169898,7.61643154,162.15,162.07,1.3705]
[1730805170195,7.61643154,162.13,162.08,7.61643154]
[1730805170395,7.61643154,162.12,162.09,3.0859]
[1730805170905,10.70203154,162.12,162.09,3.0859]
[1730805171902,3.0852,162.14,162.09,7.61643154]
[1730805172213,7.61643154,162.13,162.09,7.61643154]
[1730805172709,10.70203154,162.12,162.09,3.0859]
[1730805174697,3.0856,162.12,162.09,3.0859]
[1730805192414,7.61643154,162.14,162.08,7.61643154]
[1730805194319,3.0855,162.12,162.08,7.61643154]
[1730805194830,3.0855,162.12,162.09,3.0859]
[1730805195923,3.0855,162.12,162.1,3.0858]
[1730805203032,7.61643154,162.14,162.1,3.0858]
[1730805203234,3.0854,162.13,162.1,3.0858]
[1730805206832,3.0855,162.12,162.1,3.0858]
[1730805212227,3.0854,162.13,162.1,3.0858]
[1730805216844,7.61643154,162.14,162.1,3.0858]
[1730805217040,3.0855,162.12,162.1,3.0858]
[1730805221242,2.74,162.16,162.08,10.35643154]
[1730805221449,2.74,162.16,162.09,7.61643154]
[1730805221748,7.61643154,162.15,162.09,7.61643154]
[1730805222145,10.70153154,162.15,162.09,7.61643154]
[1730805222850,3.0851,162.14,162.11,3.0855]
[1730805223544,1.3814,162.19,162.09,7.61643154]
[1730805223747,10.70113154,162.16,162.12,7.61643154]
[1730805223944,3.0847,162.16,162.12,7.61643154]
[1730805224247,7.61643154,162.17,162.15,3.0847]
[1730805225545,3.0842,162.19,162.16,3.0846]
[1730805225744,10.70063154,162.19,162.16,3.0846]
[1730805226252,225.92154,162.23,162.16,7.61643154]
[1730805226554,7.61643154,162.21,162.16,7.61643154]
[1730805226755,7.61643154,162.21,162.16,10.35643154]
[1730805227054,10.70033154,162.21,162.18,3.0842]
[1730805227943,7.61643154,162.2,162.16,10.35643154]
[1730805228149,7.61643154,162.2,162.16,5.8246]
[1730805228748,3.0843,162.19,162.16,5.8246]
[1730805231856,3.0843,162.18,162.16,5.8246]
[1730805233651,7.61643154,162.2,162.16,2.74]
[1730805233853,3.0842,162.19,162.17,3.0844]
[1730805237257,3.0842,162.19,162.16,2.74]
[1730805237452,3.0842,162.19,162.16,5.8246]
[1730805237961,3.0842,162.19,162.16,2.74]
[1730805238162,3.0842,162.19,162.17,3.0845]
[1730805239962,10.70023154,162.21,162.18,3.0841]
[1730805240259,223.18154,162.23,162.18,7.61643154]
[1730805240563,3.0837,162.22,162.19,3.084]
[1730805240958,10.70013154,162.22,162.19,3.084]
[1730805242461,10.70013154,162.22,162.2,3.0839]
[1730805242862,223.18154,162.23,162.18,7.61643154]
[1730805243064,230.79797154,162.23,162.2,3.0839]
[1730805244363,3.0836,162.22,162.2,3.0839]
[1730805246169,233.88147154,162.23,162.2,3.0839]
[1730805246765,230.79797154,162.23,162.2,3.0839]
[1730805247060,7.61643154,162.21,162.19,3.0841]
[1730805247363,223.18154,162.23,162.17,7.61643154]
[1730805247565,10.70023154,162.21,162.18,3.0842]
[1730805248469,10.70023154,162.21,162.18,3.0841]
[1730805249363,10.70023154,162.21,162.17,7.61643154]
[1730805249561,10.70023154,162.21,162.19,3.0841]
[1730805254270,7.61643154,162.21,162.16,10.35643154]
[1730805254459,7.61643154,162.21,162.15,2.74]
[1730805254662,7.61643154,162.21,162.15,10.35643154]
[1730805255067,3.0841,162.2,162.18,3.0843]
[1730805258459,223.18154,162.23,162.18,3.0843]
[1730805258665,223.18154,162.23,162.21,3.0837]
[1730805258666,226.26504,162.23,162.21,3.0837]
[1730805260974,223.18154,162.23,162.21,3.0837]
[1730805267678,223.18154,162.23,162.22,3.0836]
[1730805277377,223.18154,162.23,162.21,3.0837]
[1730805278479,226.26494,162.23,162.21,3.0837]
[1730805278681,223.18154,162.23,162.21,3.0837]
[1730805282086,226.26494,162.23,162.21,3.0837]
[1730805293293,223.18154,162.23,162.17,2.72]
[1730805293485,223.18154,162.23,162.2,3.0838]
[1730805293991,223.18154,162.23,162.19,7.61643154]
[1730805294189,226.26504,162.23,162.21,3.0837]
[1730805295087,223.18154,162.23,162.17,2.72]
[1730805295289,3.0837,162.22,162.2,3.0839]
[1730805295879,230.79797154,162.23,162.18,7.61643154]
[1730805296095,233.88147154,162.23,162.18,7.61643154]
[1730805296592,223.18154,162.23,162.22,7.61643154]
[1730805297189,223.18154,162.23,162.22,10.70003154]
[1730805304390,221.05824,162.23,162.22,10.70003154]
[1730805304695,149.33630253,162.23,162.22,12.02713154]
[1730805304997,149.33630253,162.23,162.22,13.37263154]
[1730805305302,145.08930253,162.23,162.22,13.37263154]
[1730805306290,145.08930253,162.23,162.22,4.4107]
[1730805306587,145.08930253,162.23,162.22,12.02713154]
[1730805309004,145.08930253,162.23,162.22,4.4107]
[1730805309197,145.08930253,162.23,162.22,12.02713154]
[1730805309699,145.08930253,162.23,162.22,10.70003154]
[1730805313805,145.08930253,162.23,162.22,3.0836]
[1730805314006,145.08930253,162.23,162.22,5.8036]
[1730805317197,145.08930253,162.23,162.22,2.72]
[1730805317398,152.70573407,162.23,162.15,7.61643154]
[1730805317601,7.61643154,162.2,162.15,2.72]
[1730805317793,7.61643154,162.18,162.16,3.0846]
[1730805318202,7.61643154,162.18,162.14,2.72]
[1730805318401,1.2791,162.21,162.14,2.72]
[1730805318402,7.61643154,162.17,162.14,2.72]
[1730805319106,7.61643154,162.17,162.15,3.0848]
[1730805319507,10.70063154,162.19,162.16,3.0847]
[1730805323108,3.0844,162.18,162.16,3.0847]
[1730805324108,10.70083154,162.18,162.16,3.0847]
[1730805324502,7.61643154,162.17,162.13,75.07817716]
[1730805324709,7.61643154,162.17,162.15,3.0849]
[1730805325409,7.61643154,162.17,162.13,75.07817716]
[1730805325609,10.70103154,162.17,162.14,3.085]
[1730805326705,7.61643154,162.15,162.14,3.085]
[1730805326913,7.61643154,162.15,162.1,7.61643154]
[1730805327205,7.61643154,162.14,162.1,7.61643154]
[1730805327812,7.61643154,162.14,162.12,3.0854]
[1730805332612,7.61643154,162.14,162.13,3.0853]
[1730805335819,7.61643154,162.14,162.08,75.09758233]
[1730805336021,7.61643154,162.11,162.08,75.09758233]
[1730805336220,7.61643154,162.12,162.03,2.72]
[1730805336516,7.61643154,162.12,162.08,7.61643154]
[1730805337314,7.61643154,162.1,162.07,2.72]
[1730805337712,10.70233154,162.1,162.07,3.0863]
[1730805338210,7.61643154,162.08,162.07,3.0864]
[1730805338415,7.61643154,162.08,162.04,10.33643154]
[1730805339011,7.61643154,162.08,162.05,3.0868]
[1730805339219,7.61643154,162.08,162.04,10.33643154]
[1730805339818,7.61643154,162.06,162.03,2.72]
[1730805340221,7.61643154,162.05,162.03,2.72]
[1730805340419,10.70323154,162.05,162.03,2.72]
[1730805341116,7.61643154,162.04,161.96,2.7078]
[1730805341314,7.61643154,162.04,161.97,2.72]
[1730805341719,7.61643154,162.04,161.98,7.61643154]
[1730805341915,2.6977,162.07,161.98,7.61643154]
[1730805342117,7.61643154,162.05,162.0,7.61643154]
[1730805342724,10.70333154,162.05,162.02,3.0872]
[1730805343320,7.61643154,162.03,162.02,3.0872]
[1730805347435,7.61643154,162.03,162.0,3.0876]
[1730805347837,10.70383154,162.02,161.98,2.72]
[1730805348037,10.70383154,162.02,161.99,3.0879]
[1730805348936,3.0874,162.02,161.99,3.0879]
[1730805349336,7.61643154,162.01,161.99,3.0879]
[1730805352438,7.61643154,162.01,161.97,10.33643154]
[1730805352642,2.6977,162.07,161.98,7.61643154]
[1730805352835,7.61643154,162.03,161.98,7.61643154]
[1730805353237,7.61643154,162.03,162.02,3.0874]
[1730805354033,2.6977,162.07,162.0,7.61643154]
[1730805354235,8.92153154,162.08,162.03,7.61643154]
[1730805354438,7.61643154,162.05,162.03,5.8071]
[1730805354634,7.61643154,162.04,162.03,5.8071]
[1730805354836,7.61643154,162.04,162.03,3.0871]
[1730805355740,7.61643154,162.04,162.0,2.72]
[1730805355934,7.61643154,162.04,162.02,3.0872]
[1730805357338,10.70373154,162.03,162.0,5.8078]
[1730805357543,7.61643154,162.01,162.0,5.8078]
[1730805357845,7.61643154,162.01,162.0,2.72]
[1730805358044,7.61643154,162.01,162.0,5.8078]
[1730805358544,7.61643154,162.01,162.0,3.0878]
[1730805359842,3.0874,162.03,162.0,3.0878]
[1730805360042,7.61643154,162.02,162.0,3.0878]
[1730805362549,3.0883,161.98,161.95,3.0887]
[1730805362743,7.61643154,161.98,161.95,2.72]
[1730805363138,3.0877,162.01,161.98,3.0881]
[1730805363341,2.6846,162.07,161.97,7.61643154]
[1730805363540,7.61643154,162.04,161.98,7.61643154]
[1730805363749,10.70343154,162.04,162.01,3.0874]
[1730805364553,7.61643154,162.04,161.99,2.72]
[1730805366350,10.70343154,162.04,162.01,3.0874]
[1730805367147,5.7711,162.07,161.99,2.72]
[1730805367342,1.3051,162.08,162.01,7.61643154]
[1730805367343,7.61643154,162.06,162.01,7.61643154]
[1730805367646,40.28597029,162.1,161.99,2.72]
[1730805367647,7.61643154,162.07,162.02,7.61643154]
[1730805367854,37.56597029,162.1,162.07,3.0864]
[1730805367855,7.61643154,162.08,162.07,3.0864]
[1730805369748,7.61643154,162.08,162.04,10.33643154]
[1730805369950,7.61643154,162.08,162.06,3.0865]
[1730805371350,7.61643154,162.09,162.06,3.0865]
[1730805371651,10.70253154,162.09,162.06,3.0865]
[1730805375353,10.70303154,162.07,162.04,5.8069]
[1730805375555,7.61643154,162.06,162.04,3.0869]
[1730805375757,7.61643154,162.06,162.03,2.72]
[1730805376055,10.70323154,162.06,162.03,5.807]
[1730805376753,7.61643154,162.04,161.93,2.6615]
[1730805376945,7.61643154,162.02,161.98,7.61643154]
[1730805377149,7.61643154,162.02,161.99,2.72]
[1730805377348,10.70353154,162.04,162.01,3.0875]
[1730805378553,10.70353154,162.04,162.02,3.0874]
[1730805378757,7.61643154,162.04,162.02,3.0874]
[1730805381452,2.72,162.09,162.02,3.0874]
[1730805381655,7.61643154,162.03,162.02,3.0874]
[1730805387356,10.70363154,162.03,162.01,3.0875]
[1730805387562,7.61643154,162.02,162.01,3.0875]
[1730805390557,7.61643154,162.03,162.01,3.0875]
[1730805392559,7.61643154,162.03,162.02,3.0874]
[1730805392960,3.0871,162.04,162.02,3.0874]
[1730805393162,7.61643154,162.03,162.02,3.0874]
[1730805395363,7.61643154,162.05,162.01,7.61643154]
[1730805396561,7.61643154,162.05,162.04,3.0869]
[1730805396764,7.61643154,162.07,162.01,7.61643154]
[1730805398266,7.61643154,162.07,162.02,3.0872]
[1730805398459,7.61643154,162.07,162.01,7.61643154]
[1730805398967,10.70283154,162.07,162.05,3.0868]
[1730805400460,6.1697,162.16,162.03,2.72]
[1730805400662,7.61643154,162.07,162.06,3.0866]
[1730805412377,3.0862,162.08,162.06,3.0866]
[1730805412673,7.61643154,162.07,162.06,3.0866]
[1730805415178,7.61643154,162.07,162.05,3.0867]
[1730805415377,7.61643154,162.06,162.05,3.0867]
[1730805416583,7.61643154,162.06,162.03,2.72]
[1730805416584,3.0868,162.05,162.03,5.8071]
[1730805416782,7.61643154,162.04,162.03,2.72]
[1730805417078,7.61643154,162.04,162.0,2.72]
[1730805417280,7.61643154,162.02,162.01,3.0874]
[1730805419477,3.0879,162.0,161.98,2.72]
[1730805419686,7.61643154,161.99,161.98,2.72]
[1730805420082,7.61643154,161.99,161.96,2.72]
[1730805420279,7.61643154,161.98,161.93,1.3648]
[1730805420480,7.61643154,161.97,161.94,2.72]
[1730805420990,7.61643154,161.98,161.96,3.0885]
[1730805421680,3.0879,162.0,161.97,3.0883]
[1730805421884,7.61643154,161.99,161.97,3.0883]
[1730805422193,7.61643154,161.99,161.94,10.33643154]
[1730805422391,10.70443154,161.99,161.96,3.0885]
[1730805422685,3.088,161.99,161.96,3.0885]
[1730805422890,10.70443154,161.99,161.96,3.0885]
[1730805425996,10.70473154,161.97,161.94,3.0888]
[1730805426192,7.61643154,161.95,161.94,3.0888]
[1730805429395,7.61643154,161.95,161.92,3.0891]
[1730805429595,7.61643154,161.94,161.92,2.72]
[1730805430292,7.61643154,161.94,161.93,3.0891]
[1730805431503,7.61643154,161.94,161.92,5.8092]
[1730805431888,7.61643154,161.94,161.91,75.16625474]
[1730805431889,7.61643154,161.93,161.91,75.16625474]
[1730805432201,7.61643154,161.93,161.82,53.76620837]
[1730805432202,7.61643154,161.92,161.82,3.13909681]
[1730805432394,4.0298,161.99,161.83,2.72]
[1730805432395,7.61643154,161.9,161.83,2.72]
[1730805432694,2.72,161.94,161.88,7.61643154]
[1730805432901,7.61643154,161.93,161.88,7.61643154]
[1730805433394,10.70563154,161.93,161.88,7.61643154]
[1730805433701,10.70563154,161.93,161.89,3.0897]
[1730805433897,10.70563154,161.93,161.88,7.61643154]
[1730805435398,10.70563154,161.93,161.9,3.0897]
[1730805436395,10.70563154,161.93,161.89,3.0898]
[1730805436596,10.70563154,161.93,161.88,7.61643154]
[1730805437101,10.70563154,161.93,161.9,3.0896]
[1730805440999,4.0298,161.99,161.88,7.61643154]
[1730805441000,3.0887,161.96,161.88,2.74]
[1730805441200,7.61643154,161.97,161.92,7.61643154]
[1730805442200,7.61643154,161.97,161.95,3.0886]
[1730805442700,7.61643154,161.97,161.92,7.61643154]
[1730805442701,7.61643154,161.99,161.94,7.61643154]
[1730805442897,4.1577,162.05,161.95,7.61643154]
[1730805443094,7.61643154,162.0,161.95,7.61643154]
[1730805443305,7.61643154,162.0,161.98,3.088]
[1730805443896,7.61643154,162.0,161.95,7.61643154]
[1730805444605,7.61643154,162.0,161.98,3.088]
[1730805445604,7.61643154,161.99,161.94,7.61643154]
[1730805445810,10.70453154,161.99,161.96,3.0884]
[1730805454411,10.70453154,161.99,161.94,7.61643154]
[1730805454605,10.70453154,161.99,161.97,3.0883]
[1730805464013,4.1577,162.05,161.97,7.61643154]
[1730805464217,7.61643154,162.03,161.98,7.61643154]
[1730805464415,7.61643154,162.04,162.0,7.61643154]
[1730805464610,7.61643154,162.04,162.03,3.0872]
[1730805465616,7.61643154,162.04,161.99,7.61643154]
[1730805465922,7.61643154,162.04,162.02,3.0873]
[1730805467922,7.61643154,162.04,162.03,3.0872]
[1730805470425,144.18577,162.06,162.02,3.0873]
[1730805470622,144.18577,162.06,162.01,7.61643154]
[1730805471525,144.18577,162.06,162.05,3.0868]
[1730805473128,144.18577,162.06,162.02,7.61643154]
[1730805473323,144.18577,162.06,162.05,3.0868]
[1730805479734,144.18577,162.06,162.05,13.42323154]
[1730805481031,142.06177,162.06,162.05,13.42323154]
[1730805481334,139.93777,162.06,162.05,13.42323154]
[1730805481922,74.45453253,162.06,162.05,13.42323154]
[1730805482121,74.45453253,162.06,162.05,16.50986077]
[1730805482335,70.20633253,162.06,162.05,16.50986077]
[1730805485035,4.72309506,162.06,162.05,16.50986077]
[1730805486238,4.72309506,162.06,162.05,8.89342923]
[1730805486537,4.72309506,162.06,162.05,13.42323154]
[1730805488838,10.70163154,162.14,162.1,3.0858]
[1730805490629,7.61643154,162.14,162.09,7.61643154]
[1730805490937,1.3957,162.13,162.1,3.0858]
[1730805492335,4.4811,162.13,162.1,3.0858]
[1730805492944,1.3957,162.13,162.09,7.61643154]
[1730805493242,1.3957,162.13,162.11,3.0857]
[1730805498944,10.70113154,162.17,162.14,3.0851]
[1730805499347,10.70113154,162.17,162.12,7.61643154]
[1730805499545,10.70113154,162.17,162.15,3.0848]
[1730805499943,7.61643154,162.16,162.11,7.61643154]
[1730805500136,7.61643154,162.15,162.13,3.0851]
[1730805500842,3.0849,162.16,162.13,3.0851]
[1730805501145,10.70133154,162.16,162.11,7.61643154]
[1730805501649,10.70153154,162.15,162.12,3.0854]
[1730805502047,7.61643154,162.14,162.12,3.0854]
[1730805505444,7.61643154,162.14,162.1,7.61643154]
[1730805506549,7.61643154,162.14,162.12,3.0854]
[1730805507448,10.70153154,162.14,162.12,3.0854]
[1730805508452,3.0851,162.14,162.12,3.0854]
[1730805508846,7.61643154,162.15,162.1,7.61643154]
[1730805509155,10.70143154,162.15,162.1,7.61643154]
[1730805509753,10.70143154,162.15,162.12,3.0854]
[1730805513950,4.0038,162.18,162.11,7.61643154]
[1730805514255,4.0038,162.18,162.06,6.1731]
[1730805514256,8.90023154,162.18,162.14,3.085]
[1730805515062,3.0847,162.16,162.14,3.085]
[1730805516961,1.2838,162.18,162.14,7.61643154]
[1730805517163,2.7744,162.19,162.15,7.61643154]
[1730805517362,2.7744,162.19,162.16,7.61643154]
[1730805517755,10.70033154,162.21,162.18,3.0843]
[1730805517960,10.70033154,162.21,162.16,7.61643154]
[1730805518856,7.61643154,162.21,162.16,7.61643154]
[1730805519158,3.084,162.2,162.16,7.61643154]
[1730805519662,3.0843,162.18,162.15,7.61643154]
[1730805520566,3.0842,162.19,162.15,7.61643154]
[1730805521758,3.0842,162.19,162.15,10.70123154]
[1730805521959,3.0843,162.18,162.15,3.0848]
[1730805522158,3.0843,162.18,162.15,10.70123154]
[1730805523360,3.0843,162.18,162.15,7.61643154]
[1730805523961,8.94933154,162.2,162.15,7.61643154]
[1730805524165,7.61643154,162.19,162.13,7.61643154]
[1730805524370,7.61643154,162.17,162.12,13.42183154]
[1730805525173,7.61643154,162.17,162.13,10.70163154]
[1730805526073,10.70103154,162.17,162.13,10.70163154]
[1730805528378,3.0848,162.16,162.13,10.70163154]
[1730805530080,1.3329,162.2,162.13,10.70163154]
[1730805530285,3.0846,162.17,162.13,10.70163154]
[1730805533082,3.0847,162.17,162.13,10.70163154]
[1730805533986,7.61643154,162.18,162.13,10.70163154]
[1730805534184,3.0848,162.16,162.13,10.70163154]
[1730805535888,3.0845,162.17,162.13,10.70163154]
[1730805537287,3.085,162.15,162.12,2.72]
[1730805537487,7.61643154,162.17,162.12,10.33643154]
[1730805538793,3.0848,162.16,162.12,13.42183154]
[1730805539291,7.61643154,162.19,162.14,7.61643154]
[1730805539482,3.0844,162.18,162.14,10.70143154]
[1730805540595,3.0845,162.18,162.14,10.70143154]
[1730805541297,3.0845,162.18,162.15,3.0849]
[1730805542598,3.0845,162.17,162.15,3.0849]
[1730805543299,3.0845,162.17,162.14,7.61643154]
[1730805543489,3.0845,162.17,162.14,10.70143154]
[1730805544795,3.0848,162.16,162.13,3.0852]
[1730805545100,10.70123154,162.16,162.13,3.0852]
[1730805545996,10.26103154,162.18,162.12,10.33643154]
[1730805546191,13.34543154,162.18,162.15,3.0848]
[1730805546497,10.70083154,162.18,162.15,3.0848]
[1730805547795,7.61643154,162.16,162.08,0.70036]
[1730805547998,7.61643154,162.1,162.08,0.70036]
[1730805548192,3.086,162.09,162.08,0.70036]
[1730805548594,10.70243154,162.09,162.08,0.70036]
[1730805552604,3.0863,162.08,162.05,3.0868]
[1730805553804,3.0867,162.06,162.03,5.8071]
[1730805554494,10.70273154,162.08,162.04,3.0868]
[1730805554702,10.70273154,162.08,162.03,10.33643154]
[1730805555407,10.70273154,162.08,162.05,3.0867]
[1730805556605,10.70293154,162.07,162.04,3.087]
[1730805558502,3.0867,162.06,162.03,5.8071]
[1730805559111,7.61643154,162.07,162.03,2.72]
[1730805559305,3.0868,162.05,162.03,2.72]
[1730805559511,7.61643154,162.07,162.03,2.72]
[1730805559911,3.0867,162.06,162.03,5.8072]
[1730805561516,7.61643154,162.07,162.03,2.72]
[1730805561712,3.0864,162.07,162.04,3.0869]
[1730805562014,2.6784,162.09,162.03,10.33643154]
[1730805562210,10.29483154,162.09,162.03,10.33643154]
[1730805562413,3.0864,162.08,162.05,3.0868]
[1730805562714,10.70283154,162.08,162.03,10.33643154]
[1730805563116,10.70283154,162.08,162.04,3.0869]
[1730805566113,10.70283154,162.08,162.03,10.33643154]
[1730805566411,10.70283154,162.08,162.05,3.0868]
[1730805566611,3.0859,162.1,162.05,7.61643154]
[1730805566806,3.0859,162.1,162.06,7.61643154]
[1730805567920,3.0859,162.1,162.07,3.0863]
[1730805568118,10.70233154,162.1,162.07,3.0863]
[1730805568617,7.61643154,162.09,162.07,3.0863]